Workbook

Sheet Sheet1
A1: 2018년 7월분 학교급식 친환경농산물 식재료 공급단가 결정자료 (총괄)
A2: * 타도산 허용품목 : 감귤, 양송이버섯, 참외 * 품목 중 굵은글씨 : 전남도 계약재배품목(44종) | F2: 비고 : 순천시 7월 단가내역 * 붉은색 품목 여수산
A3: 연번 | B3: 구 분 | C3: 품 목 | D3: 세부품목 | E3: 인증단계 | F3: 규격 | G3: 평균가 | H3: 최고가 | I3: 최저가 | J3: 결정가격 | K3: 임시결정가격 | L3: 전년도 결정가격 | M3: 조 사 가 격 | T3: 비고
M4: 전월 (2018.6) | N4: 전 월 전남평균 | O4: 순천시 (2018.7) | P4: 나주시 (2018.6) | Q4: 교육지원청 | R4: 학교급식지 원센터 | S4: 매입가력
A5: 1 | B5: 곡류 (12종) | C5: 쌀(정곡) | D5: 유기농쌀 | E5: 유기농 | F5: kg | G5: =(H5+I5)/2 -> 0 | H5: =MAX(M5:T5) -> 0 | I5: =MIN(Q5:R5) -> 0 | K5: 56,000 | L5: 54,000
D6: 유기전환기 | E6: 유기전환 | F6: kg | G6: =(H6+I6)/2 -> 0 | H6: 0 | I6: =MIN(Q6:R6) -> 0 | K6: 53,000 | L6: 41,000
A7: 2 | C7: 검정쌀 | D7: 흑미 | E7: 무농약 | F7: kg | H7: 5,644 | I7: 0 | N7: 5,644
D8: 찰흑미 | E8: 무농약 | F8: kg | G8: 4,500 | H8: 4,500 | I8: 4,500 | J8: 4,500 | L8: 4,200 | M8: 4,500 | O8: 4,500 | Q8: 4,500 | R8: 4,500 | S8: 3,700
A9: 3 | C9: 기장 | E9: 무농약 | F9: kg | G9: 15,609 | H9: 16,218 | I9: 15,000 | J9: 15,000 | L9: 17,500 | M9: 15,000 | N9: 16,218 | O9: 15,700 | P9: 15,400 | Q9: 15,000 | R9: 15,000 | S9: 12,300
A10: 4 | C10: 보리쌀 | D10: 보리쌀 | E10: 무농약 | F10: kg | H10: 4,445 | I10: 0 | N10: 4,445 | O10: 4,200 | P10: 4,000
D11: 찰보리쌀 | E11: 무농약 | F11: kg | G11: =(H11+I11)/2 -> 4,500 | H11: 4,500 | I11: 4,500 | J11: 4,500 | L11: 3,600 | M11: 4,500 | O11: 4,300 | Q11: 4,500 | R11: 4,500 | S11: 3,700
A12: 5 | C12: 우리밀 | E12: 무농약 | F12: kg | G12: 4,500 | H12: 4,500 | I12: 4,500 | J12: 4,500 | L12: 3,600 | M12: 4,500 | Q12: 4,500 | R12: 4,500 | S12: 3,700
A13: 6 | C13: 율무 | E13: 무농약 | F13: kg | G13: 23,000 | H13: 24,000 | I13: 22,000 | J13: 23,000 | L13: 23,000 | M13: 23,000 | N13: 22,340 | O13: 24,000 | P13: 21,300 | Q13: 22,000 | R13: 23,000 | S13: 19,000
A14: 7 | C14: 차수수 | E14: 무농약 | F14: kg | G14: 14,600 | H14: 15,000 | I14: 14,200 | J14: 15,000 | L14: 15,000 | M14: 15,000 | Q14: 14,200 | R14: 15,000 | S14: 12,500
A15: 8 | C15: 차조 | E15: 무농약 | F15: kg | G15: 16,100 | H15: 17,200 | I15: 15,000 | J15: 15,000 | L15: 12,800 | M15: 15,000 | N15: 16,027 | O15: 17,200 | P15: 16,000 | Q15: 15,000 | R15: 15,000 | S15: 12,500
A16: 9 | C16: 찹쌀 | D16: 찹쌀 | E16: 무농약 | F16: kg | G16: 4,250 | H16: 4,500 | I16: 4,000 | J16: 4,500 | L16: 4,000 | M16: 4,500 | N16: 4,336 | O16: 4,300 | P16: 4,400 | Q16: 4,000 | R16: 4,500 | S16: 3,600
A17: 10 | C17: 현미 | D17: 현미 | E17: 무농약 | F17: kg | G17: 3,550 | H17: 3,700 | I17: 3,400 | J17: 3,700 | L17: 3,500 | M17: 3,700 | N17: 3,667 | O17: 3,000 | P17: 3,600 | Q17: 3,400 | R17: 3,700 | S17: 3,200
D18: 찹쌀현미 | E18: 무농약 | F18: kg | G18: 13,900 | H18: 24,000 | I18: 3,800 | J18: 4,500 | L18: 3,600 | M18: 4,500 | N18: 4,257 | O18: 24,000 | P18: 4,000 | Q18: 3,800 | R18: 4,500 | S18: 3,700
D19: 발아현미 | E19: 무농약 | F19: kg | G19: 6,350 | H19: 6,500 | I19: 6,200 | J19: 6,500 | L19: 6,200 | M19: 6,500 | N19: 6,377 | O19: 6,400 | P19: 5,600 | Q19: 6,200 | R19: 6,500 | S19: 5,500
D20: 찰발아현미 | E20: 무농약 | F20: kg | G20: 7,250 | H20: 7,500 | I20: 7,000 | J20: 7,500 | L20: 7,000 | M20: 7,500 | O20: 7,200 | Q20: 7,000 | R20: 7,500 | S20: 6,200
A21: 11 | C21: 혼합곡 | D21: 15곡 | E21: 무농약 | F21: kg | G21: 9,950 | H21: 10,400 | I21: 9,500 | J21: 9,500 | L21: 10,000 | M21: 9,500 | O21: 10,400 | Q21: 9,500 | R21: 10,000 | S21: 7,800
A22: 12 | C22: 귀리 | E22: 무농약 | F22: kg | G22: 10,000 | H22: 10000 | I22: 10,000 | J22: 10,000 | M22: 10,000 | Q22: 10,000 | R22: 10,000 | S22: 8,500
A23: 13 | B23: 과일류 (22종) | C23: 거봉 | E23: 무농약 | F23: kg | G23: =(H23+I23)/2 -> 0 | H23: =MAX(M23:T23) -> 0 | I23: 0
A24: 14 | C24: 블루베리 | E24: 무농약 | F24: kg | G24: 28,000 | H24: 28,000 | I24: 28,000 | J24: 28,000 | L24: 30,000 | M24: 28,000 | O24: 15,500 | Q24: 28,000 | R24: 28,000 | S24: 23,500 | T24: 7.31일까지
A25: 15 | C25: 귤 | E25: 무농약 | F25: kg | G25: 0 | H25: 0 | I25: 0
A26: 16 | C26: 단감 | E26: 무농약 | F26: kg | G26: 0 | H26: 0 | I26: 0
A27: 17 | C27: 딸기 | E27: 무농약 | F27: kg | G27: 0 | H27: 0 | I27: 0
C28: 딸기(주스용) | E28: 무농약 | F28: kg | G28: 0 | H28: 0 | I28: 0
A29: 18 | C29: 매실 | E29: 무농약 | F29: kg | H29: 6,000 | I29: 0 | M29: 6,000
A30: 19 | C30: 멜론 | E30: 무농약 | F30: kg | G30: 7,913 | H30: 8,825 | I30: 7,000 | J30: 7,000 | L30: 7,000 | M30: 7,500 | N30: 8,825 | O30: 6,000 | P30: 7,100 | Q30: 7,500 | R30: 7,000 | S30: 6,000 | T30: 7.15일까지
A31: 연번 | B31: 구 분 | C31: 품 목 | D31: 세부품목 | E31: 인증단계 | F31: 규격 | G31: 평균가 | H31: 최고가 | I31: 최저가 | J31: 결정가격 | K31: 임시결정가격 | L31: 전년도 결정가격 | M31: 조 사 가 격 | T31: 비고
M32: 전월 (2018.6) | N32: 전 월 전남평균 | O32: 순천시 (2018.7) | P32: 나주시 (2018.6) | Q32: 교육지원청 | R32: 학교급식지 원센터 | S32: 매입가력
A33: 20 | B33: 과일류 (22종) | C33: 밤 | E33: 무농약 | F33: kg | G33: =(H33+I33)/2 -> 0 | H33: =MAX(M33:T33) -> 0 | I33: =MIN(Q33:R33) -> 0
A34: 21 | C34: 방울토마토 | E34: 무농약 | F34: kg | G34: =(H34+I34)/2 -> 7,750 | H34: 8,000 | I34: =MIN(Q34:R34) -> 7,500 | J34: 8,000 | L34: 8,000 | M34: 8,000 | N34: 7,082 | O34: 7,500 | P34: 5,800 | Q34: 7,500 | R34: 8,000 | S34: 6,400
A35: 22 | C35: 배 | E35: 무농약 | F35: kg | H35: 7,183 | I35: 0 | L35: 8,000 | N35: 7,183
A36: 23 | C36: 복숭아 | E36: 무농약 | F36: kg | G36: 0 | H36: 0 | I36: 0
A37: 24 | C37: 사과 | E37: 무농약 | F37: kg | G37: 0 | H37: 0 | I37: 0
A38: 25 | C38: 수박 | E38: 무농약 | F38: kg | G38: 3,000 | H38: 3,000 | I38: 3,000 | J38: 3,000 | L38: 2,800 | M38: 3,000 | Q38: 3,000 | R38: 3,000 | S38: 2,500 | T38: 7.20일까지
A39: 26 | C39: 유자 | E39: 무농약 | F39: kg | G39: 0 | H39: 0 | I39: 0
A40: 27 | C40: 자두 | E40: 무농약 | F40: kg | G40: 0 | H40: 0 | I40: 0
A41: 28 | C41: 참다래 | E41: 무농약 | F41: kg | G41: 0 | H41: 0 | I41: 0
A42: 29 | C42: 참외 | E42: 유기농 | F42: kg | G42: 7,000 | H42: 9,000 | I42: 5,000 | J42: 8,000 | L42: 8,000 | M42: 9,000 | N42: 8,857 | O42: 6,500 | P42: 6,900 | Q42: 5,000 | R42: 8,500 | S42: 7,000 | T42: 7.31일까지
A43: 30 | C43: 토마토 | E43: 무농약 | F43: kg | G43: 4,500 | H43: 6,000 | I43: 3,000 | J43: 6,000 | L43: 5,500 | M43: 6,000 | N43: 5,950 | P43: 5,200 | Q43: 3,000 | R43: 6,000 | S43: 5,000
A44: 31 | C44: 포도 | E44: 무농약 | F44: kg | G44: 12,000 | H44: 12,000 | I44: 12,000 | J44: 11,500 | L44: 12,000 | R44: 12,000 | S44: 9,800 | T44: 8.1일부터
A45: 32 | C45: 한라봉 | E45: 무농약 | F45: kg | G45: 0 | H45: 0 | I45: 0
A46: 33 | C46: 골드키위 | E46: 무농약 | F46: kg | G46: 0 | H46: 0 | I46: 0
A47: 34 | C47: 천혜향 | G47: 0 | I47: 0
A48: 35 | B48: 버섯류 (7종) | C48: 노루궁뎅이버섯 | E48: 무농약 | F48: kg | G48: 0 | H48: =MAX(M48:T48) -> 0 | I48: 0
A49: 36 | C49: 느타리버섯 | E49: 무농약 | F49: kg | G49: 7,850 | H49: 9,700 | I49: 6,000 | J49: 8,500 | L49: 7,800 | M49: 7,500 | N49: 8,400 | O49: 8,500 | P49: 9,700 | Q49: 6,000 | R49: 9,000 | S49: 7,400
A50: 37 | C50: 새송이버섯 | D50: 새송이 | E50: 무농약 | F50: kg | G50: 5,132 | H50: 5,764 | I50: 4,500 | J50: 5,000 | L50: 5,500 | M50: 5,000 | N50: 5,764 | O50: 5,500 | P50: 5,200 | Q50: 4,500 | R50: 5,000 | S50: 4,200
D51: 꼬마새송이 | E51: 무농약 | F51: kg | G51: 3,000 | H51: 3,000 | I51: 3,000 | J51: 3,000 | L51: 3,000 | M51: 3,000 | Q51: 3,000 | R51: 3,000 | S51: 2,500
A52: 38 | C52: 양송이버섯 | E52: 무농약 | F52: kg | G52: 17,000 | H52: 18,000 | I52: 16,000 | J52: 17,000 | L52: 16,000 | M52: 17,000 | Q52: 16,000 | R52: 18,000 | S52: 14,800
A53: 39 | C53: 표고버섯 | D53: 생표고 | E53: 무농약 | F53: kg | G53: 14,750 | H53: 15,500 | I53: 14,000 | J53: 15,000 | L53: 16,000 | M53: 15,000 | O53: 15,500 | Q53: 14,000 | R53: 15,000 | S53: 12,000
D54: 건표고 | E54: 무농약 | F54: kg | G54: 46,500 | H54: 48,000 | I54: 45,000 | J54: 48,000 | L54: 50,000 | M54: 48,000 | Q54: 45,000 | R54: 48,000 | S54: 40,000
D55: 건표고 | E55: 유기농 | F55: kg | G55: 50,000 | H55: 50,000 | I55: 50,000 | J55: 50,000 | M55: 50,000 | R55: 50,000 | S55: 44,000
D56: 건표고슬라이스 | E56: 무농약 | F56: kg | G56: 50,000 | H56: 50,000 | I56: 50,000 | J56: 50,000 | M56: 50,000 | R56: 50,000 | S56: 44,000
A57: 40 | C57: 참타리버섯 | E57: 무농약 | F57: kg | G57: 6,000 | H57: 6,000 | I57: 6,000 | J57: 6,000 | L57: 6,000 | M57: 6,000 | Q57: 6,000 | R57: 6,000 | S57: 5,000
A58: 41 | C58: 팽이버섯 | E58: 무농약 | F58: kg | G58: 2,836 | H58: 2,971 | I58: 2,700 | J58: 2,700 | L58: 2,700 | M58: 2,700 | N58: 2,971 | O58: 2,700 | P58: 2,600 | Q58: 2,700 | R58: 2,700 | S58: 2,300
A59: 42 | B59: 채소류 (50종) | C59: 가지 | E59: 무농약 | F59: kg | G59: 5,000 | H59: 5,500 | I59: 4,500 | J59: 5,500 | L59: 6,200 | M59: 4,500 | O59: 5,200 | Q59: 4,500 | R59: 5,500 | S59: 4,700
E60: 유기농 | F60: kg | G60: 6,500 | H60: 6,500 | I60: 6,500 | J60: 6,500 | R60: 6,500 | S60: 5,600
A61: 연번 | B61: 구 분 | C61: 품 목 | D61: 세부품목 | E61: 인증단계 | F61: 규격 | G61: 평균가 | H61: 최고가 | I61: 최저가 | J61: 결정가격 | K61: 임시결정가격 | L61: 전년도 결정가격 | M61: 조 사 가 격 | T61: 비고
M62: 전월 (2018.6) | N62: 전 월 전남평균 | O62: 순천시 (2018.7) | P62: 나주시 (2018.6) | Q62: 교육지원청 | R62: 학교급식지 원센터 | S62: 매입가력
A63: 43 | B63: 채소류 (49종) | C63: 갓 | E63: 무농약 | F63: kg | G63: =(H63+I63)/2 -> 3,000 | H63: =MAX(M63:T63) -> 3,000 | I63: =MIN(Q63:R63) -> 3,000 | J63: 3,000 | L63: 3,500 | M63: 3,000 | R63: 3,000 | S63: 2,500
A64: 44 | C64: 건고추 | D64: 건고추 | E64: 무농약이상 | F64: kg | G64: =(H64+I64)/2 -> 41,800 | H64: =MAX(M64:T64) -> 48,600 | I64: =MIN(Q64:R64) -> 35,000 | J64: 35,000 | N64: 46,250 | O64: 42,000 | P64: 48,600 | Q64: 43,000 | R64: 35,000 | S64: 30,000 | T64: 8.1일부터
D65: 건고추꼭지제거 | E65: 무농약이상 | F65: kg | H65: =MAX(M65:T65) -> 48,000 | I65: 0 | M65: 48,000
D66: 건고추 | E66: 유기농 | F66: kg | G66: 0 | H66: 0 | I66: 0
D67: 건고추꼭지제거 | E67: 유기농 | F67: kg | G67: 0 | H67: 0 | I67: 0
A68: 45 | C68: 고구마대 | E68: 무농약 | F68: kg | G68: 0 | H68: 0 | I68: 0
A69: 46 | C69: 고사리 | D69: 건고사리 | E69: 무농약 | F69: kg | G69: 61,500 | H69: 68,000 | I69: 55,000 | J69: 67,000 | L69: 68,000 | M69: 67,000 | O69: 67,000 | Q69: 55,000 | R69: 68,000 | S69: 56,500
D70: 삶은고사리 | E70: 무농약 | G70: 15,500 | H70: 16,000 | I70: 15,000 | J70: 16,000 | M70: 16,000 | O70: 13,000 | Q70: 15,000 | R70: 16,000 | S70: 14,000
A71: 47 | C71: 고추 | D71: 풋고추 | E71: 무농약 | F71: kg | G71: 7,750 | H71: 8,500 | I71: 7,000 | J71: 8,500 | L71: 8,000 | M71: 7,500 | N71: 8,500 | O71: 8,500 | Q71: 7,000 | R71: 8,500 | S71: 7,000
D72: 홍고추 | E72: 무농약 | F72: kg | G72: 13,000 | H72: 14,000 | I72: 12,000 | J72: 12,000 | Q72: 14,000 | R72: 12,000 | S72: 10,000
D73: 청양고추 | E73: 무농약 | F73: kg | G73: 9,000 | H73: 10,000 | I73: 8,000 | J73: 10,000 | L73: 9,000 | M73: 8,500 | O73: 9,500 | Q73: 8,000 | R73: 10,000 | S73: 8,500
D74: 꽈리고추 | E74: 무농약 | F74: kg | G74: 9,500 | H74: 10,000 | I74: 9,000 | J74: 10,000 | L74: 9,000 | M74: 9,500 | Q74: 9,000 | R74: 10,000 | S74: 8,300
D75: 오이고추 | E75: 무농약 | F75: kg | G75: 7,750 | H75: 8,500 | I75: 7,000 | J75: 8,500 | L75: 8,500 | M75: 7,500 | O75: 8,500 | Q75: 7,000 | R75: 8,500 | S75: 7,300
A76: 48 | C76: 근대 | E76: 무농약 | F76: kg | G76: 4,600 | H76: 5,200 | I76: 4,000 | J76: 5,000 | L76: 3,700 | M76: 4,000 | O76: 5,200 | Q76: 4,000 | R76: 5,000 | S76: 4,200
A77: 49 | C77: 깐마늘 | D77: 깐마늘 | E77: 무농약 | F77: kg | G77: 14,750 | H77: 15,500 | I77: 14,000 | J77: 15,000 | L77: 15,000 | M77: 15,000 | N77: 14,573 | O77: 15,000 | P77: 13,000 | Q77: 14,000 | R77: 15,500 | S77: 12,500
D78: 꼭지제거 깐마늘 | E78: 무농약 | F78: kg | G78: 15,750 | H78: 16,500 | I78: 15,000 | J78: 16,500 | L78: 16,000 | M78: 16,500 | O78: 16,000 | Q78: 15,000 | R78: 16,500 | S78: 13,500
A79: 50 | C79: 깻잎 | E79: 무농약 | F79: kg | G79: 17,000 | H79: 18,000 | I79: 16,000 | J79: 18,000 | L79: 18,000 | M79: 18,000 | N79: 17,910 | O79: 18,000 | P79: 17,500 | Q79: 16,000 | R79: 18,000 | S79: 14,600
A80: 51 | C80: 냉이 | E80: 무농약 | F80: kg | G80: 0 | H80: 0 | I80: 0
A81: 52 | C81: 단호박 | E81: 무농약 | F81: kg | G81: 4,000 | H81: 4,000 | I81: 4,000 | J81: 4,000 | L81: 4,000 | R81: 4,000 | S81: 3,200
A82: 53 | C82: 달래 | E82: 무농약 | F82: kg | G82: 0 | H82: 0 | I82: 0
A83: 54 | C83: 당근 | E83: 무농약 | F83: kg | G83: 3,850 | H83: 4,200 | I83: 3,500 | J83: 4,000 | L83: 3,300 | M83: 4,200 | N83: 3,994 | O83: 3,700 | Q83: 3,500 | R83: 4,000 | S83: 3,300
A84: 55 | C84: 대파 | E84: 무농약 | F84: kg | G84: 2,850 | H84: 3,200 | I84: 2,500 | J84: 3,000 | L84: 3,300 | M84: 3,000 | N84: 2,919 | O84: 3,200 | Q84: 2,500 | R84: 3,000 | S84: 2,500
C85: 대파(실파) | D85: 실파깐것 | E85: 무농약 | F85: kg | G85: 8,000 | H85: 9,000 | I85: 7,000 | J85: 9,000 | M85: 9,000 | Q85: 7,000 | R85: 9,000 | S85: 7,500
A86: 56 | C86: 도라지 | D86: 도라지 | E86: 무농약 | F86: kg | G86: 26,000 | H86: 29,000 | I86: 23,000 | J86: 29,000 | L86: 27,000 | M86: 29,000 | Q86: 23,000 | R86: 29,000 | S86: 25,000
D87: 깐도라지채(실채) | E87: 무농약 | F87: kg | G87: 27,500 | H87: 30,000 | I87: 25,000 | J87: 30,000 | L87: 28,000 | M87: 30,000 | Q87: 25,000 | R87: 30,000 | S87: 27,000
A88: 57 | C88: 두릅 | E88: 무농약 | F88: kg | G88: 0 | H88: 0 | I88: 0
A89: 58 | C89: 무말랭이 | E89: 무농약 | F89: kg | G89: 21,000 | H89: 22,000 | I89: 20,000 | J89: 20,000 | M89: 20,000 | O89: 22,000 | Q89: 20,000 | R89: 20,000 | S89: 16,500
E90: 유기농 | F90: kg | G90: 20,000 | H90: 20,000 | I90: 20,000 | J90: 20,000 | M90: 20,000 | R90: 20,000 | S90: 16,500
A91: 연번 | B91: 구 분 | C91: 품 목 | D91: 세부품목 | E91: 인증단계 | F91: 규격 | G91: 평균가 | H91: 최고가 | I91: 최저가 | J91: 결정가격 | K91: 임시결정가격 | L91: 전년도 결정가격 | M91: 조 사 가 격 | T91: 비고
M92: 전월 (2018.6) | N92: 전 월 전남평균 | O92: 순천시 (2018.7) | P92: 나주시 (2018.6) | Q92: 교육지원청 | R92: 학교급식지 원센터 | S92: 매입가력
A93: 59 | B93: 채소류 (49종) | C93: 미나리 | E93: 무농약 | F93: kg | G93: =(H93+I93)/2 -> 5,664 | H93: =MAX(M93:T93) -> 5,828 | I93: =MIN(Q93:R93) -> 5,500 | J93: 5,500 | L93: 6,000 | M93: 5,500 | N93: 5,828 | O93: 4,500 | R93: 5,500 | S93: 4,500
A94: 60 | C94: 배추 | D94: 배추 | E94: 무농약 | F94: kg | G94: =(H94+I94)/2 -> 2,250 | H94: 2,500 | I94: =MIN(Q94:R94) -> 2,000 | L94: 2,500 | M94: 2,500 | Q94: 2,000
D95: 절임배추 | E95: 무농약 | F95: kg | G95: 3,500 | H95: 4,000 | I95: 3,000 | J95: 4,000 | L95: 4,000 | M95: 4,000 | Q95: 3,000 | R95: 4,000 | S95: 3,500
D96: 얼갈이배추 | E96: 무농약 | F96: kg | G96: 2,900 | H96: 3,000 | I96: 2,800 | J96: 2,800 | L96: 2,500 | M96: 2,800 | O96: 3,000 | Q96: 3,000 | R96: 2,800 | S96: 2,300
A97: 61 | C97: 부추 | E97: 무농약 | F97: kg | G97: 5,250 | H97: 6,000 | I97: 4,500 | J97: 6,000 | L97: 5,000 | M97: 5,000 | N97: 4,260 | O97: 6,000 | P97: 3,200 | Q97: 4,500 | R97: 6,000 | S97: 4,800
A98: 62 | C98: 브로콜리 | E98: 무농약 | F98: kg | H98: 6,000 | I98: 0 | M98: 6,000
A99: 63 | C99: 상추 | E99: 무농약 | F99: kg | G99: 6,750 | H99: 9,000 | I99: 4,500 | J99: 8,500 | L99: 7,800 | M99: 5,500 | N99: 5,742 | O99: 7,500 | Q99: 4,500 | R99: 9,000 | S99: 7,500
A100: 64 | C100: 새싹채소 | D100: 모듬베이비채소 | E100: 무농약 | F100: kg | G100: 19,000 | H100: 19,000 | I100: 19,000 | J100: 19,000 | M100: 19,000 | Q100: 19,000 | R100: 19,000 | S100: 15,500
A101: 65 | C101: 생강 | E101: 무농약 | F101: kg | G101: 0 | H101: 0 | I101: 0
A102: 66 | C102: 숙주나물 | E102: 무농약 | F102: kg | G102: 4,800 | H102: 4,800 | I102: 4,800 | J102: 4,800 | L102: 4,500 | M102: 4,800 | O102: 4,800 | Q102: 4,800 | R102: 4,800 | S102: 4,000
A103: 67 | C103: 시금치 | E103: 무농약 | F103: kg | H103: 4,548 | I103: 0 | M103: 4,500 | N103: 4,548
A104: 68 | C104: 쑥 | E104: 무농약 | F104: kg | G104: 0 | H104: 0 | I104: 0
A105: 69 | C105: 쑥갓 | E105: 무농약 | F105: kg | G105: 4,850 | H105: 5,200 | I105: 4,500 | L105: 5,000 | M105: 4,500 | N105: 3,990 | O105: 5,200 | P105: 3,000 | Q105: 4,500
A106: 70 | C106: 아욱 | E106: 무농약 | F106: kg | G106: 4,850 | H106: 5,200 | I106: 4,500 | J106: 5,000 | L106: 5,000 | M106: 4,500 | N106: 4,186 | O106: 5,200 | P106: 3,000 | Q106: 4,500 | R106: 5,000 | S106: 4,200
A107: 71 | C107: 애호박 | E107: 무농약 | F107: kg | G107: 4,900 | H107: 6,000 | I107: 3,800 | J107: 6,000 | L107: 5,500 | M107: 4,500 | N107: 4,779 | O107: 6,000 | P107: 3,200 | Q107: 3,800 | R107: 6,000 | S107: 5,000
A108: 72 | C108: 양상추 | E108: 무농약 | F108: kg | G108: 0 | H108: 0 | I108: 0
A109: 73 | C109: 열무 | D109: 김치용 | E109: 무농약 | F109: kg | G109: 2,850 | H109: 3,000 | I109: 2,700 | J109: 3,000 | L109: 2,800 | M109: 3,000 | N109: 2,719 | O109: 3,000 | P109: 2,000 | Q109: 2,700 | R109: 3,000 | S109: 2,400
D110: 나물용 | E110: 무농약 | F110: kg | G110: 3,250 | H110: 3,500 | I110: 3,000 | J110: 3,500 | L110: 3,300 | M110: 3,500 | Q110: 3,000 | R110: 3,500 | S110: 2,900
A111: 74 | B111: 채소류 (49종) | C111: 양배추 | D111: 양배추 | E111: 무농약 | F111: kg | G111: 1,900 | H111: =MAX(M111:T111) -> 2,000 | I111: 1,800 | J111: 2,000 | L111: 2,300 | M111: 2,000 | N111: 1,964 | O111: 1,500 | P111: 1,900 | Q111: 1,800 | R111: 2,000 | S111: 1,700
D112: 붉은양배추 | E112: 무농약 | F112: kg | G112: 3,750 | H112: 5,000 | I112: 2,500 | J112: 5,000 | L112: 4,500 | M112: 5,000 | Q112: 2,500 | R112: 5,000 | S112: 4,200
A113: 75 | C113: 양파 | D113: 양파 | E113: 무농약 | F113: kg | G113: 2,132 | H113: 2,264 | I113: 2,000 | J113: 2,200 | L113: 2,300 | M113: 2,200 | N113: 2,264 | O113: 2,000 | P113: 2,100 | Q113: 2,000 | R113: 2,200 | S113: 1,600
D114: 깐양파 | E114: 무농약 | F114: kg | G114: 2,900 | H114: 3,000 | I114: 2,800 | J114: 3,000 | L114: 2,800 | M114: 3,000 | O114: 3,000 | Q114: 2,800 | R114: 3,000 | S114: 2,400
A115: 76 | C115: 파프리카 | E115: 무농약 | F115: kg | H115: 15,000 | I115: 0 | M115: 15,000
A116: 77 | C116: 오이 | E116: 무농약 | F116: kg | G116: 4,900 | H116: 6,000 | I116: 3,800 | J116: 5,500 | L116: 5,200 | M116: 4,500 | N116: 4,372 | O116: 6,000 | P116: 3,600 | Q116: 3,800 | R116: 6,000 | S116: 4,900
A117: 78 | C117: 곤드래나물 | D117: 건곤드래나물 | E117: 무농약 | F117: kg | G117: 20,000 | H117: 20,000 | I117: 20,000 | J117: 20,000 | M117: 20,000 | R117: 20,000 | S117: 16,500
A118: 79 | C118: 무청시래기 | D118: 건무청시래기 | E118: 무농약 | F118: kg | G118: 9,000 | H118: 9,000 | I118: 9,000 | J118: 9,000 | M118: 9,000 | Q118: 9,000 | R118: 9,000 | S118: 7,500
A119: 80 | C119: 연근 | D119: 슬라이스 | G119: 0 | H119: 0 | I119: 0
A120: 81 | C120: 쪽파 | D120: 쪽파 | E120: 무농약 | F120: kg | G120: 0 | H120: 0 | I120: 0
A121: 연번 | B121: 구 분 | C121: 품 목 | D121: 세부품목 | E121: 인증단계 | F121: 규격 | G121: 평균가 | H121: 최고가 | I121: 최저가 | J121: 결정가격 | K121: 임시결정가격 | L121: 전년도 결정가격 | M121: 조 사 가 격 | T121: 비고
M122: 전월 (2018.6) | N122: 전 월 전남평균 | O122: 순천시 (2018.7) | P122: 나주시 (2018.6) | Q122: 교육지원청 | R122: 학교급식지 원센터 | S122: 매입가력
A123: 81 | B123: 채소류 (49종) | C123: 쪽파 | D123: 깐쪽파 | E123: 무농약 | F123: kg | G123: =(H123+I123)/2 -> 0 | H123: =MAX(M123:T123) -> 0 | I123: =MIN(Q123:R123) -> 0
A124: 82 | C124: 참나물 | E124: 무농약 | F124: kg | G124: =(H124+I124)/2 -> 4,600 | H124: =MAX(M124:T124) -> 5,000 | I124: =MIN(Q124:R124) -> 4,200 | M124: 5,000 | Q124: 4,200
A125: 83 | C125: 청경채 | E125: 무농약 | F125: kg | H125: =MAX(M125:T125) -> 6,000 | I125: 0 | M125: 6,000
A126: 84 | C126: 취나물 | D126: 생취나물 | E126: 무농약 | F126: kg | G126: 0 | H126: 0 | I126: 0
D127: 건취나물 | E127: 무농약 | F127: kg | G127: 0 | H127: 0 | I127: 0
A128: 85 | C128: 치커리 | E128: 무농약 | F128: kg | G128: 5,750 | H128: 6,000 | I128: 5,500 | L128: 6,000 | M128: 6,000 | Q128: 5,500
E129: 유기농 | F129: kg | G129: 0 | H129: 0 | I129: 0
A130: 86 | C130: 세발나물 | G130: 0 | H130: 0 | I130: 0
A131: 87 | C131: 콩나물 | E131: 무농약 | F131: kg | G131: 3,500 | H131: 3,500 | I131: 3,500 | J131: 3,500 | L131: 3,500 | M131: 3,500 | N131: 3,224 | O131: 3,200 | P131: 3,000 | Q131: 3,500 | R131: 3,500 | S131: 3,000
A132: 88 | C132: 토란대 | D132: 건토란대 | E132: 무농약 | F132: kg | H132: =MAX(M130:T130) -> 0 | I132: 40,000 | J132: 40,000 | M132: 40,000 | R132: 40,000 | S132: 32,400
E133: 유기농 | F133: kg | G133: 0 | H133: =MAX(M133:S133) -> 0 | I133: 0 | L133: 40,000
D134: 삶은토란대 | E134: 무농약 | F134: kg | G134: 25,000 | H134: =MAX(M132:T132) -> 40,000 | I134: 10,000 | J134: 10,000 | M134: 10,000 | Q134: 10,000 | R134: 10,000 | S134: 8,500
A135: 89 | C135: 피망 | D135: 청피망 | E135: 무농약 | F135: kg | G135: 6,250 | H135: =MAX(M135:T135) -> 7,000 | I135: 5,500 | J135: 6,700 | L135: 6,500 | M135: 6,000 | N135: 6,911 | O135: 6,700 | Q135: 5,500 | R135: 7,000 | S135: 5,800
D136: 홍피망 | E136: 무농약 | F136: kg | G136: 0 | H136: 0 | I136: 0
A137: 90 | C137: 통무 | E137: 무농약 | F137: kg | G137: 1,755 | H137: =MAX(M137:T137) -> 1,910 | I137: 1,600 | J137: 1,900 | L137: 1,800 | M137: 1,900 | N137: 1,910 | O137: 1,500 | P137: 1,700 | Q137: 1,600 | R137: 1,900 | S137: 1,600
A138: 91 | B138: 기타 (10종) | C138: 감자 | D138: 흙감자(대) | E138: 무농약 | F138: kg | G138: 4,718 | H138: 6,935 | I138: 2,500 | J138: 3,200 | L138: 3,000 | M138: 4,500 | N138: 6,935 | O138: 3,300 | P138: 5,800 | Q138: 2,500 | R138: 3,200 | S138: 2,600 | T138: 140g이상
D139: 찜용(중) | E139: 무농약 | F139: kg | G139: 2,500 | H139: 2,500 | I139: 2,500 | J139: 2,500 | L139: 2,500 | R139: 2,500 | S139: 2,000 | T139: 140g이하
D140: 조림용(알감자) | E140: 무농약 | F140: kg | G140: 2,650 | H140: 3,500 | I140: 1,800 | J140: 2,000 | L140: 2,000 | M140: 3,500 | Q140: 1,800 | R140: 2,000 | S140: 1,700
A141: 92 | C141: 강낭콩 | E141: 무농약 | F141: kg | G141: 17,000 | H141: 17,000 | I141: 17,000 | J141: 17,000 | L141: 17,000 | M141: 17,000 | R141: 17,000 | S141: 13,800
A142: 93 | C142: 검정깨 | E142: 무농약 | F142: kg | G142: 49,000 | H142: 50,000 | I142: 48,000 | J142: 48,000 | L142: 45,000 | M142: 48,000 | Q142: 48,000 | R142: 50,000 | S142: 42,500
A143: 94 | C143: 고구마 | D143: 찜용 | E143: 무농약 | F143: kg | G143: 4,850 | H143: 5,500 | I143: 4,200 | J143: 5,500 | L143: 4,400 | M143: 5,000 | N143: 4,671 | P143: 4,000 | Q143: 4,200 | R143: 5,500 | S143: 4,800
D144: 찜용 | E144: 유기농 | F144: kg | G144: 0 | H144: 0 | I144: 0
D145: 튀김용 | E145: 무농약 | F145: kg | G145: 4,500 | H145: 5,000 | I145: 4,000 | J145: 5,000 | L145: 4,400 | M145: 5,000 | Q145: 4,000 | R145: 5,000 | S145: 4,300
D146: 튀김용 | E146: 유기농 | F146: kg | G146: 0 | H146: 0 | I146: 0
A147: 95 | C147: 녹두 | E147: 무농약 | F147: kg | G147: 18,550 | H147: 20,100 | I147: 17,000 | J147: 20,000 | L147: 21,000 | M147: 20,000 | O147: 20,100 | Q147: 17,000 | R147: 20,000 | S147: 16,500
A148: 96 | C148: 들깨 | E148: 무농약 | F148: kg | G148: 23,500 | H148: 24,000 | I148: 23,000 | J148: 24,000 | L148: 24,000 | M148: 24,000 | O148: 12,700 | Q148: 23,000 | R148: 24,000 | S148: 19,500
A149: 97 | C149: 옥수수 | E149: 무농약 | F149: 개 | G149: 775 | H149: 900 | I149: 650 | J149: 900 | L149: 800 | O149: 700 | Q149: 650 | R149: 900 | S149: 750 | T149: 7.31일까지
A150: 98 | C150: 참깨 | E150: 무농약 | F150: kg | G150: 43,500 | H150: 45,000 | I150: 42,000 | J150: 44,000 | L150: 40,000 | M150: 44,000 | O150: 21,500 | Q150: 42,000 | R150: 45,000 | S150: 36,500
A151: 연번 | B151: 구 분 | C151: 품 목 | D151: 세부품목 | E151: 인증단계 | F151: 규격 | G151: 평균가 | H151: 최고가 | I151: 최저가 | J151: 결정가격 | K151: 임시결정가격 | L151: 전년도 결정가격 | M151: 조 사 가 격 | T151: 비고
M152: 전월 (2018.6) | N152: 전 월 전남평균 | O152: 순천시 (2018.7) | P152: 나주시 (2018.6) | Q152: 교육지원청 | R152: 학교급식지 원센터 | S152: 매입가력
A153: 99 | B153: 기타 (10종) | C153: 콩 | D153: 백태 | E153: 무농약 | F153: kg | G153: =(H153+I153)/2 -> 12,000 | H153: =MAX(M153:T153) -> 12,000 | I153: =MIN(Q153:R153) -> 12,000 | J153: 12,000 | L153: 8,000 | M153: 12,000 | N153: 10,952 | O153: 9,900 | P153: 11,900 | Q153: 12,000 | R153: 12,000 | S153: 9,600
D154: 검정약콩 | E154: 무농약 | F154: kg | G154: =(H154+I154)/2 -> 16,750 | H154: 20,500 | I154: =MIN(Q154:R154) -> 13,000 | J154: 13,000 | L154: 9,000 | M154: 13,000 | N154: 17,037 | O154: 20,500 | P154: 16,000 | Q154: 13,000 | R154: 13,000 | S154: 10,400
D155: 서리태 | E155: 무농약 | F155: kg | G155: 18,000 | H155: 21,000 | I155: 15,000 | J155: 15,000 | L155: 10,000 | M155: 15,000 | N155: 20,471 | O155: 20,000 | P155: 21,000 | Q155: 15,000 | R155: 15,000 | S155: 12,000
A156: 100 | C156: 팥 | E156: 무농약 | F156: kg | G156: 16,500 | H156: 18,000 | I156: 15,000 | J156: 18,000 | L156: 28,000 | M156: 18,000 | O156: 17,900 | Q156: 15,000 | R156: 18,000 | S156: 15,000
A157: 101 | B157: 가공식품 (5종) | C157: 돌산갓김치 | E157: 무농약 | F157: kg | G157: 0 | H157: 0 | I157: 0
A158: 102 | C158: 두부 | E158: 무농약 | F158: 3kg판 | G158: 22,500 | H158: 22,500 | I158: 22,500 | J158: 22,500 | L158: 24,000 | M158: 22,500 | Q158: 22,500 | R158: 22,500 | S158: 20,500
E159: 무농약 | F159: 420g모 | G159: 3,400 | H159: 3,400 | I159: 3,400 | J159: 3,400 | L159: 3,500 | M159: 3,400 | Q159: 3,400 | R159: 3,400 | S159: 3,100
A160: 103 | C160: 쌀가공식품 | D160: 떡가공품 | E160: 유기농 | F160: kg | G160: 4,500 | H160: 4,500 | I160: 4,500 | J160: 4,500 | M160: 4,500 | Q160: 4,500 | R160: 4,500 | S160: 3,630
A161: 104 | C161: 도지시 인증제품 | D161: 간장 | E161: 무농약 | F161: kg | G161: 10,000 | H161: 10,000 | I161: 10,000 | J161: 10,000 | M161: 10,000 | Q161: 10,000 | R161: 10,000 | S161: 9,000
D162: 고추장 | E162: 무농약 | F162: kg | G162: 20,000 | H162: 20,000 | I162: 20,000 | J162: 20,000 | M162: 20,000 | Q162: 20,000 | R162: 20,000 | S162: 18,000
D163: 된장 | E163: 무농약 | F163: kg | G163: 15,000 | H163: 15,000 | I163: 15,000 | J163: 15,000 | M163: 15,000 | Q163: 15,000 | R163: 15,000 | S163: 13,500
D164: 짜장 | E164: 무농약 | F164: kg | G164: 0 | H164: 0 | I164: 0
D165: 청국장 | E165: 무농약 | F165: kg | G165: 11,000 | H165: 11,000 | I165: 11,000 | J165: 11,000 | M165: 11,000 | Q165: 11,000 | R165: 11,000 | S165: 9,900
D166: 청국장분말 | E166: 무농약 | F166: kg | G166: 33,000 | H166: 33,000 | I166: 33,000 | J166: 33,000 | M166: 33,000 | Q166: 33,000 | R166: 33,000 | S166: 29,700
D167: 춘장 | E167: 무농약 | F167: kg | G167: 0 | H167: 0 | I167: 0
A168: 105 | C168: 일반 가공식품 | D168: 고춧가루 | E168: 무농약이상 | F168: kg | G168: 51,000 | H168: 54,000 | I168: 48,000 | O168: 54,000 | Q168: 48,000
D169: 고춧가루 | E169: 유기농 | F169: kg | G169: 0 | H169: 0 | I169: 0
D170: 조청 | E170: 유기농 | F170: kg | G170: 0 | H170: 0 | I170: 0
D171: 매실액 | E171: 유기농 | F171: kg | G171: 0 | H171: 0 | I171: 0
D172: 냉식혜 | E172: 유기농 | F172: box | G172: 13,000 | H172: 13,000 | I172: 13,000 | J172: 13,000 | L172: 17,400 | M172: 13,000 | R172: 13,000 | S172: 11,600
A173: 106 | B173: 축산물 (5종) | C173: 계란(1등급특란) | E173: 1등급이상, haccp 적용 | F173: kg | G173: 7,750 | H173: =MAX(M173:T173) -> 8,500 | I173: 7,000 | J173: 8,000 | L173: 10,300 | M173: 8,000 | Q173: 7,000 | R173: 8,500 | S173: 7,600
C174: 계란(유정란) | E174: 1등급이상, haccp 적용 | F174: kg | G174: 0 | H174: 0 | I174: 0 | L174: 13,000
A175: 107 | C175: 닭고기 | D175: 토막,껍질유 | E175: 1등급이상, haccp 적용 | F175: kg | G175: 5,500 | H175: =MAX(M175:T175) -> 5,800 | I175: 5,200 | J175: 5,400 | L175: 6,200 | M175: 5,400 | Q175: 5,200 | R175: 5,800 | S175: 4,900
D176: 토막,껍질무 | E176: 1등급이상, haccp 적용 | F176: kg | G176: 6,850 | H176: 7,200 | I176: 6,500 | J176: 6,700 | L176: 7,500 | M176: 6,700 | Q176: 6,500 | R176: 7,200 | S176: 6,200
D177: 통닭,껍질유 | E177: 1등급이상, haccp 적용 | F177: kg | G177: 5,500 | H177: 5,800 | I177: 5,200 | J177: 5,400 | L177: 6,100 | M177: 5,400 | Q177: 5,200 | R177: 5,800 | S177: 4,900
D178: 통닭,껍질무 | E178: 1등급이상, haccp 적용 | F178: kg | G178: 6,850 | H178: 7,200 | I178: 6,500 | J178: 6,700 | L178: 6,900 | M178: 6,700 | Q178: 6,500 | R178: 7,200 | S178: 6,200
D179: 정육,껍질유 | E179: 1등급이상, haccp 적용 | F179: kg | G179: 10,050 | H179: 10,600 | I179: 9,500 | J179: 9,700 | L179: 11,100 | M179: 9,700 | Q179: 9,500 | R179: 10,600 | S179: 8,500
D180: 정육,껍질무 | E180: 1등급이상, haccp 적용 | F180: kg | G180: 10,800 | H180: 11,600 | I180: 10,000 | J180: 10,200 | L180: 12,000 | M180: 10,200 | Q180: 10,000 | R180: 11,600 | S180: 9,200
A181: 연번 | B181: 구 분 | C181: 품 목 | D181: 세부품목 | E181: 인증단계 | F181: 규격 | G181: 평균가 | H181: 최고가 | I181: 최저가 | J181: 결정가격 | K181: 임시결정가격 | L181: 전년도 결정가격 | M181: 조 사 가 격 | T181: 비고
M182: 전월 (2018.6) | N182: 전 월 전남평균 | O182: 순천시 (2018.7) | P182: 나주시 (2018.6) | Q182: 교육지원청 | R182: 학교급식지 원센터 | S182: 매입가력
A183: 107 | B183: 축산물 (5종) | C183: 닭고기 | D183: 가슴살 | E183: 1등급이상, haccp 적용 | F183: kg | G183: =(H183+I183)/2 -> 6,550 | H183: =MAX(M183:T183) -> 6,900 | I183: =MIN(Q183:R183) -> 6,200 | J183: 6,900 | L183: 8,200 | M183: 6,900 | Q183: 6,200 | R183: 6,900 | S183: 6,000
D184: 날개봉 | E184: 1등급이상, haccp 적용 | F184: kg | G184: =(H184+I184)/2 -> 9,000 | H184: 9,600 | I184: =MIN(Q184:R184) -> 8,400 | J184: 8,900 | L184: 9,700 | M184: 8,900 | Q184: 8,400 | R184: 9,600 | S184: 8,400
A185: 108 | C185: 돼지고기 | D185: 전지 | E185: 4등급이상, haccp 적용 | F185: kg | G185: 11,900 | H185: =MAX(M185:T185) -> 13,000 | I185: 10,800 | J185: 11,700 | L185: 11,500 | M185: 11,700 | Q185: 10,800 | R185: 13,000 | S185: 10,800
D186: 후지 | E186: 1등급이상, haccp 적용 | F186: kg | G186: 6,900 | H186: 7,500 | I186: 6,300 | J186: 7,000 | L186: 7,000 | M186: 7,000 | Q186: 6,300 | R186: 7,500 | S186: 6,500
D187: 삼겹살 | E187: 5등급이상, haccp 적용 | F187: kg | G187: 21,000 | H187: 23,000 | I187: 19,000 | J187: 22,000 | L187: 21,600 | M187: 22,000 | Q187: 19,000 | R187: 23,000 | S187: 21,000
D188: 목심 | E188: 3등급이상, haccp 적용 | F188: kg | G188: 19,500 | H188: 21,000 | I188: 18,000 | J188: 20,000 | L188: 20,000 | M188: 20,000 | Q188: 18,000 | R188: 21,000 | S188: 18,500
D189: 등뼈 | E189: 1등급이상, haccp 적용 | F189: kg | G189: 4,750 | H189: 5,000 | I189: 4,500 | J189: 5,000 | L189: 5,800 | M189: 5,000 | Q189: 4,500 | R189: 5,000 | S189: 4,300
D190: 등심 | E190: 2등급이상, haccp 적용 | F190: kg | G190: 10,450 | H190: 11,000 | I190: 9,900 | J190: 10,500 | L190: 11,000 | M190: 10,500 | Q190: 9,900 | R190: 11,000 | S190: 9,500
D191: 갈비 | E191: 1등급이상, haccp 적용 | F191: kg | G191: 11,400 | H191: 12,000 | I191: 10,800 | J191: 11,000 | L191: 11,600 | M191: 11,000 | Q191: 10,800 | R191: 12,000 | S191: 9,500
A192: 109 | C192: 소고기 | D192: 설도,설깃 | E192: 2등급이상, haccp 적용 | F192: kg | G192: 40,900 | H192: 44,000 | I192: 37,800 | J192: 39,000 | L192: 41,100 | M192: 38,000 | Q192: 37,800 | R192: 44,000 | S192: 38,000
D193: 우둔 | E193: 5등급이상, haccp 적용 | F193: kg | G193: 40,900 | H193: 44,000 | I193: 37,800 | J193: 39,000 | L193: 41,100 | M193: 38,000 | Q193: 37,800 | R193: 44,000 | S193: 38,000
D194: 앞다리 | E194: 4등급이상, haccp 적용 | F194: kg | G194: 40,900 | H194: 44,000 | I194: 37,800 | J194: 39,000 | L194: 41,100 | M194: 38,000 | Q194: 37,800 | R194: 44,000 | S194: 38,000
D195: 양지 | E195: 1등급이상, haccp 적용 | F195: kg | G195: 52,500 | H195: 57,000 | I195: 48,000 | J195: 50,000 | L195: 51,700 | M195: 48,000 | Q195: 48,000 | R195: 57,000 | S195: 49,000
D196: 목심 | E196: 1등급이상, haccp 적용 | F196: kg | G196: 40,400 | H196: 43,000 | I196: 37,800 | J196: 39,000 | L196: 41,100 | M196: 38,000 | Q196: 37,800 | R196: 43,000 | S196: 38,000
D197: 사태 | E197: 2등급이상, haccp 적용 | F197: kg | G197: 40,400 | H197: 43,000 | I197: 37,800 | J197: 39,000 | L197: 41,100 | M197: 38,000 | Q197: 37,800 | R197: 43,000 | S197: 38,000
D198: 갈비 | E198: 1등급이상, haccp 적용 | F198: kg | G198: 58,000 | H198: 62,000 | I198: 54,000 | J198: 51,000 | L198: 65,000 | M198: 55,000 | Q198: 54,000 | R198: 62,000 | S198: 50,000
A199: 110 | C199: 오리고기(무발색제) | D199: 세절 | E199: 1등급이상, haccp 적용 | F199: kg | G199: 13,500 | H199: 15,000 | I199: 12,000 | J199: 14,800 | L199: 12,800 | M199: 14,800 | Q199: 12,000 | R199: 15,000 | S199: 12,000
D200: 훈제슬라이스 | E200: 1등급이상, haccp 적용 | F200: kg | G200: 16,250 | H200: 18,000 | I200: 14,500 | J200: 17,500 | L200: 18,600 | M200: 17,500 | Q200: 14,500 | R200: 18,000 | S200: 15,000

Sheet Sheet2

Sheet Sheet3
